bitfinex-derivatives/quotes_SOLF0:USTF0_20250630
["timestamp","ask_amount","ask_price","bid_price","bid_amount"]
[1751312348536,3.70530257,157.31,157.26,45.52]
[1751312348737,6.3563,157.3,157.26,45.52]
[1751312349137,3.70530257,157.31,157.26,45.52]
[1751312349339,3.70530257,157.29,157.24,2.1189]
[1751312350337,10.06220257,157.29,157.26,6.3577]
[1751312350949,3.70530257,157.31,157.28,6.3571]
[1751312351347,6.3565,157.3,157.27,6.3573]
[1751312352152,3.70530257,157.29,157.26,6.3577]
[1751312352453,3.70530257,157.27,157.22,45.52]
[1751312353054,3.70530257,157.25,157.22,45.52]
[1751312353552,10.06370257,157.25,157.22,6.3592]
[1751312353746,3.70530257,157.25,157.22,6.3592]
[1751312354151,2.2405,157.28,157.17,2.1208]
[1751312354350,3.70530257,157.26,157.18,49.24530257]
[1751312354654,3.70530257,157.26,157.24,6.3584]
[1751312355452,3.70530257,157.26,157.25,6.3583]
[1751312356547,3.70530257,157.26,157.24,6.3585]
[1751312356851,3.70530257,157.26,157.18,49.24530257]
[1751312357046,5.94580257,157.28,157.2,3.70530257]
[1751312357244,3.70530257,157.28,157.2,3.70530257]
[1751312357643,3.70530257,157.28,157.26,6.3576]
[1751312358856,10.06240257,157.28,157.26,6.3576]
[1751312359055,10.06240257,157.28,157.25,6.3581]
[1751312359448,3.70530257,157.28,157.23,6.3588]
[1751312359654,3.70530257,157.26,157.18,45.54]
[1751312360159,3.70530257,157.26,157.21,6.3595]
[1751312360559,6.3585,157.25,157.21,6.3595]
[1751312361156,3.70530257,157.26,157.22,6.3593]
[1751312361357,3.70530257,157.24,157.18,45.54]
[1751312361555,3.70530257,157.24,157.21,6.3595]
[1751312361758,3.70530257,157.24,157.18,45.54]
[1751312362155,3.70530257,157.24,157.22,6.3595]
[1751312363153,3.70530257,157.24,157.23,6.3591]
[1751312363349,5.92463151,157.29,157.21,3.70530257]
[1751312363350,3.70530257,157.29,157.21,3.70530257]
[1751312363561,10.07767154,157.32,157.18,58.262]
[1751312363562,9.62993408,157.31,157.23,3.70530257]
[1751312363761,9.62993408,157.31,157.28,6.3571]
[1751312363762,5.92463151,157.29,157.28,6.3571]
[1751312363955,5.92463151,157.29,157.23,46.16]
[1751312364562,15.98693408,157.29,157.23,46.16]
[1751312364867,15.98693408,157.29,157.24,6.3584]
[1751312365064,10.06230257,157.29,157.24,6.3584]
[1751312365269,6.3571,157.28,157.24,6.3584]
[1751312365459,3.70530257,157.29,157.25,6.3582]
[1751312365654,8.15583151,157.32,157.23,46.16]
[1751312365655,6.3567,157.3,157.23,46.16]
[1751312366062,12.28133151,157.3,157.26,6.3577]
[1751312366261,3.70530257,157.29,157.23,46.16]
[1751312366763,6.3581,157.26,157.23,46.16]
[1751312366963,3.70530257,157.27,157.23,46.16]
[1751312367159,3.70530257,157.27,157.19,3.70530257]
[1751312367160,3.70530257,157.25,157.19,46.16]
[1751312367456,46.16,157.29,157.19,46.16]
[1751312367457,3.70530257,157.26,157.19,46.16]
[1751312367965,52.08463151,157.29,157.19,46.16]
[1751312367966,3.70530257,157.24,157.19,46.16]
[1751312368166,3.70530257,157.24,157.2,6.3601]
[1751312368460,3.70530257,157.22,157.19,46.16]
[1751312368667,3.70530257,157.22,157.18,6.3609]
[1751312369162,3.70530257,157.22,157.17,8.4821]
[1751312369357,3.70530257,157.22,157.17,2.1208]
[1751312369863,5.49554396,157.23,157.18,6.361]
[1751312370067,6.3601,157.21,157.18,6.361]
[1751312370469,5.49554396,157.23,157.18,6.361]
[1751312371567,5.49554396,157.23,157.17,6.3615]
[1751312371769,6.3606,157.2,157.17,6.3615]
[1751312371965,5.49554396,157.21,157.16,6.3617]
[1751312372357,46.18,157.24,157.15,46.18]
[1751312372764,46.18,157.24,157.16,5.49554396]
[1751312373063,6.3595,157.22,157.16,5.49554396]
[1751312373267,6.3595,157.22,157.15,46.18]
[1751312373862,5.49554396,157.24,157.15,46.18]
[1751312374267,6.3597,157.22,157.15,46.18]
[1751312374569,5.49554396,157.24,157.2,6.3603]
[1751312375066,6.3594,157.23,157.2,6.3603]
[1751312375458,4.436,157.26,157.15,51.67554396]
[1751312375665,5.49554396,157.29,157.19,5.49554396]
[1751312376062,6.3577,157.27,157.24,6.3583]
[1751312376269,5.49554396,157.29,157.2,48.3509]
[1751312376767,6.3576,157.27,157.24,6.3587]
[1751312377070,5.49554396,157.29,157.24,6.3587]
[1751312377267,6.3579,157.26,157.23,6.3589]
[1751312378574,6.3577,157.27,157.23,6.3589]
[1751312378767,6.3577,157.27,157.24,6.3587]
[1751312379470,6.3579,157.26,157.24,6.3587]
[1751312379871,6.3579,157.26,157.23,6.3589]
[1751312381473,6.3579,157.26,157.24,6.3586]
[1751312382875,5.49554396,157.29,157.2,48.3509]
[1751312383373,5.92463151,157.3,157.2,48.3509]
[1751312383374,6.3586,157.25,157.22,6.3592]
[1751312383671,5.49554396,157.27,157.2,46.18]
[1751312383874,6.3592,157.23,157.2,52.5401]
[1751312384173,5.49554396,157.27,157.17,2.098]
[1751312384374,5.49554396,157.25,157.17,2.098]
[1751312384874,6.3597,157.22,157.19,6.3604]
[1751312385175,6.3597,157.22,157.17,2.098]
[1751312385875,5.49554396,157.25,157.17,2.098]
[1751312386372,6.3593,157.23,157.17,2.098]
[1751312386571,6.3593,157.23,157.2,6.36]
[1751312386776,6.3593,157.23,157.17,2.098]
[1751312387275,6.3593,157.23,157.2,6.36]
[1751312389574,5.49554396,157.25,157.16,46.18]
[1751312389773,54.02647154,157.29,157.16,46.18]
[1751312389774,3.70905454,157.23,157.16,46.18]
[1751312390777,3.70905454,157.23,157.18,6.3609]
[1751312391279,6.3599,157.21,157.18,6.3611]
[1751312391777,6.3604,157.2,157.17,6.3615]
[1751312391976,3.70905454,157.21,157.14,2.1746]
[1751312392275,3.70905454,157.19,157.14,2.1746]
[1751312392571,6.362,157.16,157.14,8.5372]
[1751312392778,6.362,157.16,157.14,6.3626]
[1751312392978,3.70905454,157.19,157.12,45.94]
[1751312393175,6.3615,157.17,157.14,6.3627]
[1751312394977,6.3615,157.17,157.15,6.3622]
[1751312396580,6.3615,157.17,157.14,6.3626]
[1751312396783,3.70905454,157.19,157.11,45.94]
[1751312397079,3.70905454,157.19,157.13,6.3629]
[1751312397381,6.3625,157.15,157.11,45.94]
[1751312397582,3.70905454,157.17,157.11,45.94]
[1751312397775,8.13143151,157.2,157.11,45.94]
[1751312397979,3.70905454,157.19,157.11,45.94]
[1751312398379,6.362,157.16,157.11,45.94]
[1751312398580,2.2068,157.2,157.11,45.94]
[1751312398581,5.92463151,157.22,157.13,3.70905454]
[1751312398779,3.70905454,157.22,157.13,3.70905454]
[1751312399178,3.70905454,157.22,157.18,6.3611]
[1751312399385,3.70905454,157.23,157.18,6.3611]
[1751312399885,6.3603,157.21,157.18,6.3611]
[1751312400479,5.92463151,157.24,157.16,3.70905454]
[1751312400775,2.1432,157.25,157.09,5.82954402]
[1751312400776,3.70905454,157.26,157.18,3.70905454]
[1751312400981,3.70905454,157.25,157.18,45.94]
[1751312401382,3.70905454,157.25,157.21,6.3595]
[1751312401581,6.3589,157.24,157.21,6.3595]
[1751312402486,3.70905454,157.25,157.18,45.94]
[1751312402985,6.3592,157.23,157.2,6.3601]
[1751312403582,6.3592,157.23,157.21,6.3599]
[1751312403782,6.3589,157.24,157.21,6.3599]
[1751312404382,3.70905454,157.25,157.18,45.94]
[1751312404578,3.70905454,157.23,157.18,45.94]
[1751312404982,6.3601,157.21,157.18,52.3009]
[1751312405182,3.70905454,157.24,157.18,45.94]
[1751312405377,6.3592,157.23,157.2,6.36]
[1751312405685,3.70905454,157.24,157.2,6.36]
[1751312405878,3.70905454,157.24,157.18,45.94]
[1751312406073,6.3598,157.22,157.19,6.3606]
[1751312406286,3.70905454,157.24,157.18,45.94]
[1751312406585,55.57368605,157.26,157.18,45.94]
[1751312406777,3.70905454,157.26,157.19,3.70905454]
[1751312407391,5.92463151,157.27,157.19,3.70905454]
[1751312407588,9.63368605,157.28,157.2,2.2388]
[1751312407981,9.63368605,157.28,157.22,6.3594]
[1751312408185,9.63368605,157.28,157.2,2.2388]
[1751312408582,6.3588,157.24,157.21,6.3596]
[1751312409087,6.3586,157.25,157.22,6.3595]
[1751312409286,9.63368605,157.28,157.22,6.3595]
[1751312409787,6.3585,157.25,157.22,6.3595]
[1751312410582,5.92463151,157.28,157.21,3.70905454]
[1751312410788,5.92463151,157.28,157.21,5.78335454]
[1751312411189,6.3576,157.27,157.24,6.3587]
[1751312411488,5.92463151,157.29,157.21,5.78335454]
[1751312411789,6.3581,157.26,157.23,6.3589]
[1751312413191,6.3577,157.27,157.24,6.3586]
[1751312413683,6.3577,157.27,157.24,6.3583]
[1751312413988,55.57368605,157.3,157.23,3.70905454]
[1751312414189,55.57368605,157.3,157.24,6.3585]
[1751312414378,3.70905454,157.29,157.21,5.78335454]
[1751312414885,3.70905454,157.29,157.25,6.3583]
[1751312415382,6.3575,157.27,157.25,6.3583]
[1751312415792,3.70905454,157.29,157.24,6.3585]
[1751312416292,6.3579,157.26,157.21,5.78335454]
[1751312416893,6.3576,157.27,157.21,5.78335454]
[1751312417393,6.3577,157.27,157.24,6.3586]
[1751312419897,6.3577,157.27,157.25,6.3583]
[1751312420092,6.3577,157.27,157.21,5.78335454]
[1751312420489,6.3577,157.27,157.24,6.3584]
[1751312420792,6.3577,157.27,157.21,5.78335454]
[1751312421096,6.3577,157.27,157.25,6.3583]
[1751312421893,6.3577,157.27,157.23,3.70905454]
[1751312422292,6.3577,157.27,157.24,6.3584]
[1751312423496,6.3577,157.27,157.21,5.78335454]
[1751312423497,3.70905454,157.28,157.18,45.94]
[1751312423692,3.70905454,157.28,157.18,49.64905454]
[1751312424093,6.359,157.24,157.21,6.3597]
[1751312424394,3.70905454,157.26,157.21,6.3597]
[1751312425897,6.359,157.24,157.21,6.3597]
[1751312426895,6.3593,157.23,157.2,6.3601]
[1751312427095,3.70905454,157.26,157.18,45.94]
[1751312427398,6.3574,157.28,157.25,6.3581]
[1751312427595,2.1664,157.31,157.23,3.70905454]
[1751312427596,8.09103151,157.31,157.23,49.38905454]
[1751312427994,2.1664,157.31,157.23,49.38905454]
[1751312428196,3.70905454,157.3,157.23,49.38905454]
[1751312428400,3.70905454,157.3,157.23,45.68]
[1751312428697,6.3582,157.26,157.23,52.039]
[1751312429201,6.3577,157.27,157.24,6.3584]
[1751312429392,6.3577,157.27,157.23,45.68]
[1751312429701,6.3577,157.27,157.24,6.3585]
[1751312431202,6.3577,157.27,157.23,45.68]
[1751312431599,2.1664,157.31,157.23,49.38905454]
[1751312431904,133.75399483,157.33,157.25,3.70905454]
[1751312432105,6.3565,157.3,157.25,3.70905454]
[1751312432304,6.3565,157.3,157.27,6.3573]
[1751312432801,6.356,157.31,157.25,3.70905454]
[1751312433003,133.75399483,157.33,157.27,6.3573]
[1751312433504,6.3564,157.3,157.25,3.70905454]
[1751312434506,3.70905454,157.32,157.27,6.3575]
[1751312435007,3.70905454,157.32,157.24,2.1711]
[1751312435306,3.70905454,157.3,157.24,2.1711]
[1751312435902,2.1577,157.32,157.26,6.3577]
[1751312436106,3.70905454,157.31,157.24,2.1711]
[1751312436708,6.3573,157.28,157.24,2.1711]
[1751312437110,3.70905454,157.31,157.24,2.1711]
[1751312437409,6.357,157.29,157.26,6.3577]
[1751312438508,6.3571,157.28,157.26,6.3577]
[1751312438710,3.70905454,157.31,157.27,6.3575]
[1751312438910,133.75399483,157.33,157.26,3.70905454]
[1751312439210,51.60463151,157.34,157.31,6.3556]
[1751312439211,3.70905454,157.34,157.31,6.3556]
[1751312439510,6.355,157.34,157.31,6.3556]
[1751312440209,6.3551,157.33,157.31,6.3556]
[1751312441310,6.3548,157.34,157.31,6.3556]
[1751312442312,6.3548,157.34,157.32,6.3554]
[1751312442511,8.08135454,157.36,157.32,6.3554]
[1751312442512,6.3544,157.35,157.32,6.3554]
[1751312442712,5.91225454,157.36,157.28,49.38905454]
[1751312443009,6.3549,157.34,157.31,6.3557]
[1751312443812,6.3549,157.34,157.32,6.3554]
[1751312444417,6.3544,157.35,157.32,6.3554]
[1751312445718,6.3547,157.34,157.31,6.3557]
[1751312446022,5.91225454,157.36,157.28,49.38905454]
[1751312446420,6.3553,157.33,157.3,6.3559]
[1751312446625,6.3553,157.33,157.28,49.38905454]
[1751312447519,3.70905454,157.34,157.28,45.68]
[1751312447918,3.70905454,157.32,157.28,45.68]
[1751312448223,3.70905454,157.3,157.24,47.8311]
[1751312448624,6.3572,157.28,157.24,47.8311]
[1751312448923,3.70905454,157.3,157.24,45.66]
[1751312449126,3.70905454,157.3,157.25,6.358]
[1751312449719,6.3573,157.28,157.25,6.358]
[1751312449920,3.70905454,157.3,157.24,45.66]
[1751312450423,3.70905454,157.3,157.25,6.3582]
[1751312450825,6.3573,157.28,157.25,6.3582]
[1751312453828,6.3575,157.27,157.25,6.3582]
[1751312454127,3.70905454,157.3,157.24,45.66]
[1751312454432,6.3575,157.28,157.25,6.3583]
[1751312454730,3.70905454,157.3,157.24,45.66]
[1751312455132,3.70905454,157.3,157.24,52.0185]
[1751312455330,3.70905454,157.28,157.24,45.66]
[1751312455531,6.3583,157.25,157.24,45.66]
[1751312455834,3.70905454,157.28,157.24,45.66]
[1751312456633,8.03933151,157.3,157.24,45.66]
[1751312456835,3.70905454,157.29,157.24,45.66]
[1751312457130,6.3583,157.26,157.24,45.66]
[1751312457330,6.3583,157.26,157.23,6.3589]
[1751312457533,3.70905454,157.29,157.22,3.70905454]
[1751312457733,6.3579,157.26,157.23,6.3588]
[1751312458033,6.3579,157.26,157.22,3.70905454]
[1751312458433,6.3579,157.26,157.21,3.70905454]
[1751312459033,6.3577,157.27,157.24,6.3585]
[1751312460139,6.3577,157.27,157.21,3.70905454]
[1751312460330,2.1147,157.3,157.21,3.70905454]
[1751312460527,2.1147,157.3,157.23,3.70905454]
[1751312460729,6.3573,157.28,157.25,6.3583]
[1751312461228,6.3577,157.27,157.24,6.3585]
[1751312461431,2.1147,157.3,157.21,3.70905454]
[1751312461835,2.1147,157.3,157.26,6.3577]
[1751312462424,6.3573,157.28,157.25,6.3582]
[1751312462629,2.1147,157.3,157.25,6.3582]
[1751312462829,6.3571,157.28,157.21,3.70905454]
[1751312463032,3.70905454,157.29,157.22,3.70905454]
[1751312463232,3.70905454,157.29,157.2,51.56535454]
[1751312463433,6.3584,157.25,157.2,51.56535454]
[1751312463930,6.3584,157.25,157.22,6.3593]
[1751312464136,3.70905454,157.25,157.2,45.64]
[1751312464533,3.70905454,157.25,157.17,549.56]
[1751312464534,3.70905454,157.25,157.17,595.2]
[1751312465036,6.3605,157.2,157.17,595.2]
[1751312465238,3.70905454,157.23,157.17,595.2]
[1751312465433,5.92463151,157.25,157.17,595.2]
[1751312465637,6.3592,157.23,157.17,595.2]
[1751312465932,3.70905454,157.25,157.17,595.2]
[1751312466137,6.3593,157.23,157.2,6.36]
[1751312467230,3.70905454,157.25,157.2,6.36]
[1751312467838,6.3594,157.23,157.2,6.36]
[1751312468538,3.70905454,157.25,157.2,6.36]
[1751312468539,6.3597,157.22,157.2,6.36]
[1751312468838,3.70905454,157.25,157.17,595.2]
[1751312468839,3.70905454,157.23,157.17,595.2]
[1751312470140,3.70905454,157.23,157.18,6.361]
[1751312470739,6.3603,157.21,157.18,6.361]
[1751312470939,3.70905454,157.23,157.18,6.361]
[1751312471342,6.3604,157.2,157.18,6.361]
[1751312471542,10.18003151,157.26,157.19,6.3607]
[1751312471736,3.70905454,157.24,157.17,45.64]
[1751312472142,6.3601,157.21,157.18,6.3609]
[1751312472344,3.70905454,157.24,157.18,6.3609]
[1751312472545,6.36,157.21,157.18,6.3609]
[1751312473245,6.3604,157.2,157.17,45.64]
[1751312473636,6.3602,157.21,157.18,6.3608]
[1751312475537,3.70905454,157.24,157.17,49.34905454]
[1751312475744,7.96445454,157.26,157.17,49.34905454]
[1751312476056,7.96445454,157.26,157.19,3.70905454]
[1751312476346,6.3589,157.24,157.22,6.3593]
[1751312476740,7.96445454,157.26,157.19,3.70905454]
[1751312476945,6.3588,157.24,157.21,6.3596]
[1751312477748,6.3588,157.24,157.22,6.3594]
[1751312479749,4.2554,157.26,157.23,6.3591]
[1751312480446,6.3585,157.25,157.23,6.3591]
[1751312483950,6.3587,157.24,157.22,6.3593]
[1751312484448,6.3585,157.25,157.22,6.3593]
[1751312485050,6.3584,157.25,157.22,6.3593]
[1751312486454,6.3584,157.25,157.19,3.70905454]
[1751312486853,6.3588,157.24,157.19,3.70905454]
[1751312487652,6.3588,157.24,157.22,6.3593]
[1751312488852,6.3585,157.25,157.23,6.359]
[1751312489953,6.3585,157.25,157.22,6.3593]
[1751312490248,6.3585,157.25,157.19,3.70905454]
[1751312490953,6.3585,157.25,157.22,6.3593]
[1751312491655,6.3585,157.25,157.19,3.70905454]
[1751312492357,6.3585,157.25,157.23,6.3589]
[1751312492654,6.3585,157.25,157.19,3.70905454]
[1751312493055,2.0871,157.26,157.19,3.70905454]
[1751312493858,6.3589,157.24,157.21,6.3596]
[1751312494258,6.3589,157.24,157.19,3.70905454]
[1751312495358,6.3589,157.24,157.22,6.3595]
[1751312496960,6.3585,157.25,157.23,6.3591]
[1751312497557,6.3585,157.25,157.22,6.3593]
[1751312497761,8.4451,157.26,157.19,3.70905454]
[1751312498060,55.23368605,157.3,157.21,3.70905454]
[1751312498554,55.23368605,157.3,157.24,6.3585]
[1751312500062,5.92463151,157.29,157.24,6.3585]
[1751312500662,6.3578,157.27,157.24,6.3585]
[1751312501856,6.3579,157.26,157.24,6.3585]
[1751312504564,6.3579,157.26,157.23,6.3589]
[1751312504866,6.3583,157.25,157.23,6.3589]
[1751312505264,9.63368605,157.28,157.22,6.3593]
[1751312505461,6.3586,157.25,157.22,6.3593]
[1751312506363,6.3586,157.25,157.23,6.3591]
[1751312506560,6.3581,157.26,157.21,3.70905454]
[1751312507370,6.3583,157.25,157.23,6.3589]
[1751312508171,6.3583,157.25,157.22,6.3593]
[1751312508870,6.3583,157.25,157.23,6.359]
[1751312509870,6.3581,157.26,157.24,6.3587]
[1751312510169,5.92463151,157.27,157.21,3.70905454]
[1751312510371,6.3584,157.25,157.23,6.3588]
[1751312513574,6.3587,157.24,157.22,6.3594]
[1751312514174,6.3584,157.25,157.23,6.3591]
[1751312515078,6.3584,157.25,157.22,6.3593]
[1751312515471,3.70905454,157.24,157.16,8.02694402]
[1751312515678,3.70905454,157.24,157.16,2.1974]
[1751312515977,6.3599,157.22,157.16,2.1974]
[1751312516176,6.3599,157.22,157.17,3.70905454]
[1751312516568,6.36,157.21,157.17,3.70905454]
[1751312516767,6.36,157.21,157.18,6.3611]
[1751312516972,6.36,157.21,157.17,3.70905454]
[1751312517279,6.36,157.21,157.19,6.3607]
[1751312519278,6.3604,157.2,157.18,6.3609]
[1751312519483,9.63368605,157.24,157.16,2.1974]
[1751312519773,9.63368605,157.24,157.17,6.3615]
[1751312520080,5.92463151,157.23,157.17,6.3615]
[1751312521081,3.70905454,157.2,157.15,45.5]
[1751312521281,3.70905454,157.2,157.13,5.82954402]
[1751312521483,3.70905454,157.2,157.14,6.3625]
[1751312521974,3.70905454,157.18,157.13,6.3629]
[1751312522179,3.70905454,157.18,157.12,197.58718326]
[1751312522180,6.3622,157.16,157.12,191.75763924]
[1751312522582,3.70905454,157.18,157.13,6.3629]
[1751312522886,3.70905454,157.18,157.12,191.75763924]
[1751312523078,5.92305454,157.18,157.11,51.8638]
[1751312523475,6.363,157.14,157.11,51.8638]
[1751312523686,6.363,157.14,157.11,45.5]
[1751312524082,6.363,157.14,157.11,51.8638]
[1751312524277,6.3632,157.13,157.11,51.8638]
[1751312525583,2.077,157.18,157.12,3.70905454]
[1751312525778,5.92463151,157.22,157.14,3.70905454]
[1751312525983,6.3606,157.2,157.17,6.3614]
[1751312526483,10.24833151,157.23,157.16,49.22905454]
[1751312526689,10.25651858,157.23,157.16,49.22905454]
[1751312526886,4.3237,157.23,157.16,49.22905454]
[1751312527986,6.3604,157.2,157.16,49.22905454]
[1751312528689,6.3604,157.2,157.17,6.3613]
[1751312529390,6.3607,157.19,157.17,6.3613]
[1751312529588,6.3607,157.19,157.16,51.8818]
[1751312529790,3.70905454,157.22,157.14,3.70905454]
[1751312529983,6.3615,157.18,157.12,51.28985454]
[1751312530189,6.3615,157.18,157.15,6.362]
[1751312531093,6.3615,157.18,157.16,6.3619]
[1751312531291,6.3608,157.19,157.14,3.70905454]
[1751312531992,6.3608,157.19,157.17,6.3615]
[1751312532183,6.3608,157.19,157.14,3.70905454]
[1751312532582,6.3608,157.19,157.16,6.3617]
[1751312533392,6.3608,157.19,157.17,6.3614]
[1751312534495,6.3608,157.19,157.16,6.3618]
[1751312535398,6.3608,157.19,157.17,6.3615]
[1751312535696,6.3605,157.2,157.17,6.3615]
[1751312535992,4.3237,157.23,157.19,6.3604]
[1751312536292,5.93281858,157.24,157.16,3.70905454]
[1751312536494,6.3597,157.22,157.19,6.3605]
[1751312536693,55.16187312,157.25,157.19,6.3605]
[1751312537495,6.3598,157.22,157.19,6.3605]
[1751312538489,6.3592,157.23,157.16,3.70905454]
[1751312538690,6.3592,157.23,157.18,3.70905454]
[1751312539393,45.52,157.25,157.18,3.70905454]
[1751312539788,6.359,157.24,157.21,6.3597]
[1751312541398,2.1155,157.26,157.21,6.3597]
[1751312541697,6.3592,157.23,157.21,6.3597]
[1751312542898,8.09975454,157.27,157.2,3.70905454]
[1751312542899,4.3907,157.27,157.2,3.70905454]
[1751312543897,6.3583,157.25,157.22,6.3595]
[1751312544101,4.3907,157.27,157.2,3.70905454]
[1751312544292,6.3583,157.25,157.22,6.3594]
[1751312544492,8.09975454,157.27,157.2,3.70905454]
[1751312544995,3.70905454,157.25,157.17,45.52]
[1751312545592,9.64187312,157.25,157.17,45.52]
[1751312545793,3.70905454,157.23,157.17,45.52]
[1751312546294,6.3611,157.19,157.17,45.52]
[1751312546494,6.3611,157.19,157.16,6.3617]
[1751312547501,6.3605,157.2,157.17,6.3614]
[1751312548001,3.70905454,157.23,157.17,6.3614]
[1751312549402,6.3608,157.19,157.17,6.3614]
[1751312549999,6.3612,157.18,157.16,6.3617]
[1751312550199,51.33281858,157.24,157.15,2.1244]
[1751312550498,45.4,157.24,157.16,3.70905454]
[1751312550800,45.4,157.24,157.15,2.1244]
[1751312550801,6.3597,157.22,157.18,3.70905454]
[1751312551100,6.3597,157.22,157.19,6.3606]
[1751312551505,6.3597,157.22,157.18,3.70905454]
[1751312551801,6.3597,157.22,157.19,6.3606]
[1751312552003,6.3597,157.22,157.18,3.70905454]
[1751312552405,6.3597,157.22,157.19,6.3604]
[1751312552904,6.3597,157.22,157.18,3.70905454]
[1751312553606,6.3597,157.22,157.19,6.3606]
[1751312554001,2.2004,157.25,157.18,3.70905454]
[1751312554302,9.64187312,157.26,157.21,6.3596]
[1751312554708,6.3589,157.24,157.2,3.70905454]
[1751312555303,6.3584,157.25,157.2,3.70905454]
[1751312555605,5.93281858,157.26,157.2,3.70905454]
[1751312555904,6.3592,157.23,157.2,3.70905454]
[1751312556404,6.3592,157.23,157.2,6.36]
[1751312557903,6.3592,157.23,157.21,6.3599]
[1751312561296,6.3589,157.24,157.21,6.3599]
[1751312562406,6.3592,157.23,157.21,6.3599]
[1751312562904,6.3589,157.24,157.18,49.10905454]
[1751312563504,6.3581,157.26,157.23,6.3588]
[1751312563805,6.3581,157.26,157.2,3.70905454]
[1751312564597,6.3581,157.26,157.23,6.359]
[1751312565308,6.3584,157.25,157.23,6.359]
[1751312569112,6.3587,157.24,157.22,6.3593]
[1751312569807,6.3585,157.25,157.22,6.3593]
[1751312570009,6.3585,157.25,157.23,6.359]
[1751312571309,6.3585,157.25,157.18,45.4]
[1751312571310,4.3907,157.27,157.15,7.96304772]
[1751312571516,3.70905454,157.25,157.17,49.10905454]
[1751312572015,6.3595,157.22,157.19,6.3606]
[1751312572614,6.3592,157.23,157.2,6.3602]
[1751312573215,14.03257312,157.27,157.19,3.70905454]
[1751312573515,10.32351858,157.27,157.19,3.70905454]
[1751312573815,6.3589,157.24,157.21,6.3596]
[1751312574015,6.3589,157.24,157.19,3.70905454]
[1751312574711,6.3584,157.25,157.22,6.3593]
[1751312575014,6.3584,157.25,157.19,3.70905454]
[1751312575812,6.3584,157.25,157.22,6.3593]
[1751312576613,6.3584,157.25,157.23,6.3591]
[1751312577015,6.3584,157.25,157.19,3.70905454]
[1751312577216,6.3584,157.25,157.22,6.3592]
[1751312577616,6.3588,157.24,157.22,6.3592]
[1751312578216,6.3588,157.24,157.21,6.3598]
[1751312578418,6.3588,157.24,157.19,3.70905454]
[1751312579518,6.3588,157.24,157.22,6.3593]
[1751312579919,6.3585,157.25,157.21,3.70905454]
[1751312580120,2.2502,157.27,157.23,6.3588]
[1751312580315,2.2502,157.27,157.23,3.70905454]
[1751312580619,5.93281858,157.35,157.25,3.70905454]
[1751312580822,5.93281858,157.38,157.32,3.70905454]
[1751312581317,57.06137312,157.4,157.32,3.70905454]
[1751312581516,6.3532,157.38,157.31,2.1468]
[1751312581710,6.3532,157.38,157.35,6.354]
[1751312581911,6.3528,157.39,157.35,6.354]
[1751312582111,2.1195,157.4,157.34,3.70905454]
[1751312582321,3.70905454,157.43,157.36,3.70905454]
[1751312582919,5.93281858,157.44,157.38,3.70905454]
[1751312583113,5.93281858,157.44,157.35,45.3]
[1751312583114,6.3508,157.44,157.4,3.70905454]
[1751312583521,4.2132,157.45,157.4,3.70905454]
[1751312584314,10.5636,157.45,157.4,3.70905454]
[1751312584824,10.5636,157.45,157.41,6.3516]
[1751312585220,6.3507,157.44,157.4,10.06115454]
[1751312585425,4.2132,157.45,157.4,3.70905454]
[1751312586625,6.3507,157.44,157.4,10.06125454]
[1751312589732,4.2132,157.45,157.35,45.3]
[1751312589931,4.2132,157.45,157.38,3.70905454]
[1751312591029,6.3511,157.43,157.39,6.3524]
[1751312591932,6.3511,157.43,157.4,6.3522]
[1751312592231,6.3511,157.43,157.38,3.70905454]
[1751312592432,6.3511,157.43,157.39,6.3524]
[1751312592930,2.2517,157.47,157.41,6.3517]
[1751312593529,6.3505,157.45,157.41,6.3517]
[1751312594935,6.3507,157.44,157.4,55.32115454]